[Event "Late-Titled-Tuesday-Blitz-September-12-2023"]
[Site "Chess.com"]
[Date "2023.09.12"]
[Round "1"]
[White "LoaySameer"]
[Black "IMSlavin"]
[Result "0-1"]
[WhiteElo "2517"]
[BlackElo "2215"]
[TimeControl "180+1"]
[EndTime "14:09:05 PDT"]
[Termination "IMSlavin won by resignation"]

1. Nf3 {[%clk 0:03:00.9]} 1... Nc6 {[%clk 0:02:59.4]} 2. d4 {[%clk 0:02:59.9]}
2... d6 {[%clk 0:02:59.5]} 3. g3 {[%clk 0:03:00.4]} 3... Nf6 {[%clk 0:02:58.4]}
4. Bg2 {[%clk 0:03:00.9]} 4... Bg4 {[%clk 0:02:58.2]} 5. O-O {[%clk 0:03:01.3]}
5... e5 {[%clk 0:02:58.5]} 6. d5 {[%clk 0:02:57.4]} 6... Ne7 {[%clk 0:02:58.4]}
7. c4 {[%clk 0:02:58]} 7... Qc8 {[%clk 0:02:58.1]} 8. Nc3 {[%clk 0:02:58.1]}
8... Bh3 {[%clk 0:02:57.4]} 9. e4 {[%clk 0:02:58.5]} 9... Bxg2 {[%clk
0:02:57.3]} 10. Kxg2 {[%clk 0:02:59.4]} 10... Ng6 {[%clk 0:02:57.6]} 11. Rb1
{[%clk 0:02:55.6]} 11... Be7 {[%clk 0:02:56.6]} 12. b4 {[%clk 0:02:53.5]} 12...
O-O {[%clk 0:02:56]} 13. h3 {[%clk 0:02:50.2]} 13... h6 {[%clk 0:02:48.6]} 14.
Be3 {[%clk 0:02:49.8]} 14... Nh7 {[%clk 0:02:48.1]} 15. c5 {[%clk 0:02:47.2]}
15... f5 {[%clk 0:02:48.1]} 16. exf5 {[%clk 0:02:45.1]} 16... Qxf5 {[%clk
0:02:47.4]} 17. Nd2 {[%clk 0:02:41.6]} 17... Bg5 {[%clk 0:02:42]} 18. Nde4
{[%clk 0:02:37.8]} 18... Bxe3 {[%clk 0:02:34.7]} 19. fxe3 {[%clk 0:02:38.7]}
19... Qd7 {[%clk 0:02:31.4]} 20. Qg4 {[%clk 0:02:34.3]} 20... Qxg4 {[%clk
0:02:24.4]} 21. hxg4 {[%clk 0:02:35.2]} 21... Rxf1 {[%clk 0:02:10.3]} 22. Rxf1
{[%clk 0:02:34.1]} 22... Rd8 {[%clk 0:01:40.2]} 23. cxd6 {[%clk 0:02:05.3]}
23... cxd6 {[%clk 0:01:40.3]} 24. Nb5 {[%clk 0:02:05.1]} 24... Ne7 {[%clk
0:01:33.8]} 25. Rd1 {[%clk 0:01:58.4]} 25... Nc8 {[%clk 0:01:18]} 26. Nc7 {[%clk
0:01:49]} 26... Rd7 {[%clk 0:01:06.4]} 27. Ne6 {[%clk 0:01:47.3]} 27... Nb6
{[%clk 0:01:01.3]} 28. Nc3 {[%clk 0:01:32.9]} 28... Nf8 {[%clk 0:00:59.8]} 29.
a4 {[%clk 0:01:31.2]} 29... a6 {[%clk 0:00:52.4]} 30. e4 {[%clk 0:01:27.3]}
30... Nc4 {[%clk 0:00:44]} 31. Nxf8 {[%clk 0:00:59.2]} 31... Kxf8 {[%clk
0:00:37.1]} 32. Kf3 {[%clk 0:00:50.5]} 32... Rc7 {[%clk 0:00:30.4]} 33. Ke2
{[%clk 0:00:32.9]} 33... Nb2 {[%clk 0:00:25.1]} 34. Rf1+ {[%clk 0:00:32.6]}
34... Ke7 {[%clk 0:00:24.8]} 35. Kd2 {[%clk 0:00:31.7]} 35... Nc4+ {[%clk
0:00:21.7]} 36. Kd3 {[%clk 0:00:31.4]} 36... Nb2+ {[%clk 0:00:20.4]} 37. Kd2
{[%clk 0:00:31.1]} 37... Nc4+ {[%clk 0:00:21.1]} 38. Ke2 {[%clk 0:00:31.6]}
38... Nb6 {[%clk 0:00:19.4]} 39. Rf3 {[%clk 0:00:30.8]} 39... Rc4 {[%clk
0:00:18.6]} 40. b5 {[%clk 0:00:29.6]} 40... Nxa4 {[%clk 0:00:16.5]} 41. Nxa4
{[%clk 0:00:28.4]} 41... Rxe4+ {[%clk 0:00:17]} 42. Kf2 {[%clk 0:00:25.7]} 42...
Rxa4 {[%clk 0:00:17.9]} 43. bxa6 {[%clk 0:00:24]} 43... bxa6 {[%clk 0:00:18.5]}
44. Rb3 {[%clk 0:00:24.6]} 44... Rxg4 {[%clk 0:00:17.8]} 45. Rb7+ {[%clk
0:00:25]} 45... Ke8 {[%clk 0:00:15.3]} 46. Rb6 {[%clk 0:00:24.6]} 46... Kd7
{[%clk 0:00:15.1]} 47. Rb7+ {[%clk 0:00:24.2]} 47... Kc8 {[%clk 0:00:15.2]} 48.
Rb6 {[%clk 0:00:24.3]} 48... Kc7 {[%clk 0:00:15.4]} 49. Rc6+ {[%clk 0:00:24.9]}
49... Kd7 {[%clk 0:00:15.9]} 50. Rxa6 {[%clk 0:00:25.5]} 50... Rd4 {[%clk
0:00:16]} 51. Ra7+ {[%clk 0:00:26]} 51... Ke8 {[%clk 0:00:16]} 52. Rxg7 {[%clk
0:00:26.9]} 52... Rxd5 {[%clk 0:00:16.4]} 53. Rg6 {[%clk 0:00:26.7]} 53... Rd4
{[%clk 0:00:16.9]} 54. Rxh6 {[%clk 0:00:27]} 54... Kd7 {[%clk 0:00:17.4]} 55.
Rf6 {[%clk 0:00:26.4]} 55... Rg4 {[%clk 0:00:16.4]} 56. Kf3 {[%clk 0:00:25.3]}
56... Rg7 {[%clk 0:00:16.2]} 57. g4 {[%clk 0:00:25.7]} 57... Kc6 {[%clk
0:00:17.1]} 58. Rf5 {[%clk 0:00:20.6]} 58... Kc5 {[%clk 0:00:17.3]} 59. g5
{[%clk 0:00:21.1]} 59... Kd4 {[%clk 0:00:17]} 60. Kg4 {[%clk 0:00:21]} 60... e4
{[%clk 0:00:16.4]} 61. Rf8 {[%clk 0:00:21.4]} 61... e3 {[%clk 0:00:16.6]} 62.
Re8 {[%clk 0:00:22]} 62... d5 {[%clk 0:00:16.5]} 63. Kf5 {[%clk 0:00:22.1]}
63... Kd3 {[%clk 0:00:17.1]} 64. Kf6 {[%clk 0:00:21.5]} 64... Rd7 {[%clk
0:00:14.2]} 65. g6 {[%clk 0:00:19.9]} 65... e2 {[%clk 0:00:14.8]} 66. Re5 {[%clk
0:00:15.2]} 66... d4 {[%clk 0:00:13]} 67. Kf5 {[%clk 0:00:14.8]} 67... Kd2
{[%clk 0:00:13]} 68. Kf6 {[%clk 0:00:14.8]} 68... d3 {[%clk 0:00:13.1]} 69. g7
{[%clk 0:00:14.2]} 69... Rxg7 {[%clk 0:00:13.5]} 70. Kxg7 {[%clk 0:00:15.1]}
70... e1=Q {[%clk 0:00:13]} 71. Rxe1 {[%clk 0:00:16]} 71... Kxe1 {[%clk
0:00:13.6]} 72. Kf6 {[%clk 0:00:16.9]} 72... d2 {[%clk 0:00:13.8]} 73. Kf5
{[%clk 0:00:17.8]} 73... d1=Q {[%clk 0:00:13.8]} 74. Ke4 {[%clk 0:00:18.7]}
74... Qa4+ {[%clk 0:00:13.6]} 75. Kf5 {[%clk 0:00:19.6]} 75... Qd4 {[%clk
0:00:14]} 76. Ke6 {[%clk 0:00:19.9]} 76... Ke2 {[%clk 0:00:13.8]} 77. Kf7 {[%clk
0:00:20.8]} 77... Qb6 {[%clk 0:00:13.6]} 0-1

[Event "Late-Titled-Tuesday-Blitz-September-12-2023"]
[Site "Chess.com"]
[Date "2023.09.12"]
[Round "1"]
[White "Francisco_Ferrari"]
[Black "arminmusovic"]
[Result "0-1"]
[WhiteElo "2219"]
[BlackElo "2539"]
[TimeControl "180+1"]
[EndTime "14:09:19 PDT"]
[Termination "arminmusovic won on time"]

1. e4 {[%clk 0:03:00.9]} 1... c6 {[%clk 0:02:59.6]} 2. d4 {[%clk 0:02:59.7]}
2... d5 {[%clk 0:03:00.3]} 3. exd5 {[%clk 0:02:58.2]} 3... cxd5 {[%clk
0:03:01.2]} 4. Bd3 {[%clk 0:02:58.1]} 4... Nc6 {[%clk 0:03:01.5]} 5. c3 {[%clk
0:02:57.5]} 5... g6 {[%clk 0:03:01.2]} 6. Nf3 {[%clk 0:02:57.3]} 6... a6 {[%clk
0:03:01.3]} 7. O-O {[%clk 0:02:57.5]} 7... Bg7 {[%clk 0:03:01.9]} 8. Re1 {[%clk
0:02:58]} 8... Nf6 {[%clk 0:03:02.5]} 9. Ne5 {[%clk 0:02:53.4]} 9... O-O {[%clk
0:03:02.7]} 10. h3 {[%clk 0:02:49.8]} 10... Nd7 {[%clk 0:03:01.7]} 11. f4 {[%clk
0:02:42.1]} 11... f6 {[%clk 0:02:59.4]} 12. Nxg6 {[%clk 0:02:36.3]} 12... hxg6
{[%clk 0:02:56.7]} 13. Bxg6 {[%clk 0:02:36.8]} 13... f5 {[%clk 0:02:52.2]} 14.
Nd2 {[%clk 0:02:25.3]} 14... Rf6 {[%clk 0:02:46.4]} 15. Bh5 {[%clk 0:02:20.5]}
15... Nf8 {[%clk 0:02:46.3]} 16. Nf3 {[%clk 0:02:16.7]} 16... Bd7 {[%clk
0:02:34.4]} 17. Ne5 {[%clk 0:02:10.3]} 17... Be8 {[%clk 0:02:33.4]} 18. Bf3
{[%clk 0:02:07.8]} 18... e6 {[%clk 0:02:31.1]} 19. Nd3 {[%clk 0:02:00.1]} 19...
Qc7 {[%clk 0:02:09]} 20. Be3 {[%clk 0:01:55.5]} 20... Rh6 {[%clk 0:02:04.9]} 21.
Bf2 {[%clk 0:01:47.5]} 21... Bf7 {[%clk 0:01:59.8]} 22. Qd2 {[%clk 0:01:40.4]}
22... Ng6 {[%clk 0:01:57.9]} 23. Nc5 {[%clk 0:01:35.2]} 23... Re8 {[%clk
0:01:56.1]} 24. Bg3 {[%clk 0:01:22.5]} 24... Bf6 {[%clk 0:01:52.1]} 25. Qf2
{[%clk 0:01:10.7]} 25... Bh4 {[%clk 0:01:49.8]} 26. Bxh4 {[%clk 0:01:10.6]}
26... Nxh4 {[%clk 0:01:41.2]} 27. Be2 {[%clk 0:00:58.9]} 27... Kh7 {[%clk
0:01:18.8]} 28. Bd3 {[%clk 0:00:58.1]} 28... Rg8 {[%clk 0:01:16.6]} 29. Bf1
{[%clk 0:00:41.5]} 29... Qe7 {[%clk 0:01:05]} 30. Kh1 {[%clk 0:00:33.1]} 30...
Ng6 {[%clk 0:01:01.1]} 31. Bd3 {[%clk 0:00:31.1]} 31... Qh4 {[%clk 0:00:54.5]}
32. Qxh4 {[%clk 0:00:25.3]} 32... Nxh4 {[%clk 0:00:55.4]} 33. Re2 {[%clk
0:00:21.4]} 33... Kg7 {[%clk 0:00:30.2]} 34. Rae1 {[%clk 0:00:20.9]} 34... Nd8
{[%clk 0:00:27.7]} 35. g3 {[%clk 0:00:18.8]} 35... Ng6 {[%clk 0:00:22.9]} 36.
Kg2 {[%clk 0:00:19.4]} 36... Kf6 {[%clk 0:00:21.4]} 37. Kh2 {[%clk 0:00:17.4]}
37... Rgh8 {[%clk 0:00:20.9]} 38. h4 {[%clk 0:00:17.1]} 38... Nxh4 {[%clk
0:00:21.1]} 39. gxh4 {[%clk 0:00:17.3]} 39... Rxh4+ {[%clk 0:00:22]} 40. Kg3
{[%clk 0:00:17.1]} 40... Rg4+ {[%clk 0:00:21.8]} 41. Kf2 {[%clk 0:00:15.9]}
41... Rxf4+ {[%clk 0:00:22.2]} 42. Ke3 {[%clk 0:00:15.3]} 42... Rhh4 {[%clk
0:00:21.2]} 43. Kd2 {[%clk 0:00:15.1]} 43... Bh5 {[%clk 0:00:21]} 44. Re3 {[%clk
0:00:14.1]} 44... Rf2+ {[%clk 0:00:20.6]} 45. Kc1 {[%clk 0:00:14.4]} 45... Bf7
{[%clk 0:00:20.8]} 46. Nd7+ {[%clk 0:00:14.3]} 46... Ke7 {[%clk 0:00:20.6]} 47.
Ne5 {[%clk 0:00:15.2]} 47... Rhh2 {[%clk 0:00:20.7]} 48. Bxf5 {[%clk 0:00:14.3]}
48... Rxb2 {[%clk 0:00:14]} 49. Bb1 {[%clk 0:00:13.3]} 49... Bg8 {[%clk
0:00:12.4]} 50. Rg1 {[%clk 0:00:12.1]} 50... Bh7 {[%clk 0:00:09.3]} 51. Rg7+
{[%clk 0:00:10.8]} 51... Kf6 {[%clk 0:00:07.1]} 52. Rxh7 {[%clk 0:00:10.8]}
52... Rxb1+ {[%clk 0:00:07.4]} 53. Kxb1 {[%clk 0:00:11.7]} 53... Rxh7 {[%clk
0:00:07.6]} 54. Rf3+ {[%clk 0:00:10.9]} 54... Ke7 {[%clk 0:00:08.2]} 55. Ng6+
{[%clk 0:00:10.4]} 55... Kd7 {[%clk 0:00:07.7]} 56. Ne5+ {[%clk 0:00:09.6]}
56... Kc7 {[%clk 0:00:08]} 57. Rf6 {[%clk 0:00:09.9]} 57... Rg7 {[%clk
0:00:07.8]} 58. Kc2 {[%clk 0:00:10.2]} 58... Kd6 {[%clk 0:00:07.2]} 59. Kb3
{[%clk 0:00:10.3]} 59... Ke7 {[%clk 0:00:07.4]} 60. Rf4 {[%clk 0:00:10]} 60...
Nc6 {[%clk 0:00:08]} 61. Nxc6+ {[%clk 0:00:09.7]} 61... bxc6 {[%clk 0:00:08.9]}
62. Kb4 {[%clk 0:00:10.3]} 62... Kd6 {[%clk 0:00:09.6]} 63. Rf6 {[%clk
0:00:10.8]} 63... Rb7+ {[%clk 0:00:08.3]} 64. Ka3 {[%clk 0:00:10.6]} 64... Rb5
{[%clk 0:00:08]} 65. Rf8 {[%clk 0:00:09.2]} 65... c5 {[%clk 0:00:07.4]} 66. Rd8+
{[%clk 0:00:08.5]} 66... Ke7 {[%clk 0:00:07.4]} 67. Rc8 {[%clk 0:00:08.2]} 67...
Ra5+ {[%clk 0:00:07.9]} 68. Kb3 {[%clk 0:00:08.2]} 68... c4+ {[%clk 0:00:08.1]}
69. Kb2 {[%clk 0:00:07.5]} 69... Kd7 {[%clk 0:00:08]} 70. Rb8 {[%clk 0:00:06.6]}
70... Kc7 {[%clk 0:00:08.1]} 71. Re8 {[%clk 0:00:06.4]} 71... Rb5+ {[%clk
0:00:08.5]} 72. Kc2 {[%clk 0:00:05.3]} 72... Rb6 {[%clk 0:00:09.4]} 73. Rh8
{[%clk 0:00:05]} 73... Kd7 {[%clk 0:00:09.3]} 74. Rh7+ {[%clk 0:00:05.6]} 74...
Kd6 {[%clk 0:00:09.7]} 75. Rh6 {[%clk 0:00:06.5]} 75... a5 {[%clk 0:00:10]} 76.
Rh7 {[%clk 0:00:06.8]} 76... Ra6 {[%clk 0:00:09.5]} 77. Rh5 {[%clk 0:00:07.5]}
77... a4 {[%clk 0:00:09.8]} 78. Re5 {[%clk 0:00:08.4]} 78... a3 {[%clk
0:00:10.3]} 79. Re1 {[%clk 0:00:08]} 79... Rb6 {[%clk 0:00:10.8]} 80. Rb1 {[%clk
0:00:08.2]} 80... Rxb1 {[%clk 0:00:11]} 81. Kxb1 {[%clk 0:00:09.1]} 81... e5
{[%clk 0:00:11.8]} 82. Kc2 {[%clk 0:00:08.6]} 82... e4 {[%clk 0:00:12.2]} 83.
Kd2 {[%clk 0:00:08.9]} 83... Ke6 {[%clk 0:00:13.1]} 84. Ke3 {[%clk 0:00:09.7]}
84... Kf5 {[%clk 0:00:13.9]} 85. Ke2 {[%clk 0:00:10.1]} 85... Kf4 {[%clk
0:00:14.8]} 86. Kf2 {[%clk 0:00:11]} 86... e3+ {[%clk 0:00:15.2]} 87. Ke2 {[%clk
0:00:11.9]} 87... Ke4 {[%clk 0:00:16.1]} 88. Kd1 {[%clk 0:00:12.3]} 88... Kd3
{[%clk 0:00:17]} 89. Ke1 {[%clk 0:00:13.2]} 89... Kxc3 {[%clk 0:00:17.4]} 90.
Ke2 {[%clk 0:00:14.1]} 90... Kxd4 {[%clk 0:00:18.1]} 91. Kf1 {[%clk 0:00:15]}
91... Ke4 {[%clk 0:00:18.8]} 92. Ke2 {[%clk 0:00:15.2]} 92... d4 {[%clk
0:00:19.7]} 93. Ke1 {[%clk 0:00:16.1]} 93... d3 {[%clk 0:00:20.5]} 94. Kd1
{[%clk 0:00:17]} 94... Kd4 {[%clk 0:00:21.4]} 0-1

[Event "Late-Titled-Tuesday-Blitz-September-12-2023"]
[Site "Chess.com"]
[Date "2023.09.12"]
[Round "1"]
[White "C_K_G"]
[Black "Sjakkerntobi"]
[Result "0-1"]
[WhiteElo "2033"]
[BlackElo "2521"]
[TimeControl "180+1"]
[EndTime "14:09:35 PDT"]
[Termination "Sjakkerntobi won on time"]

1. e4 {[%clk 0:02:56.2]} 1... e6 {[%clk 0:03:00.3]} 2. Nf3 {[%clk 0:02:56.2]}
2... d5 {[%clk 0:03:00.8]} 3. Nc3 {[%clk 0:02:56]} 3... d4 {[%clk 0:03:00.8]} 4.
Ne2 {[%clk 0:02:55.7]} 4... c5 {[%clk 0:03:01.6]} 5. c3 {[%clk 0:02:55.3]} 5...
Nf6 {[%clk 0:03:01.6]} 6. e5 {[%clk 0:02:53.2]} 6... Nfd7 {[%clk 0:03:01.8]} 7.
cxd4 {[%clk 0:02:52.7]} 7... cxd4 {[%clk 0:03:02.7]} 8. Nexd4 {[%clk 0:02:49.8]}
8... Nxe5 {[%clk 0:03:00.2]} 9. Nxe5 {[%clk 0:02:49.4]} 9... Qxd4 {[%clk
0:02:59.1]} 10. Bb5+ {[%clk 0:02:48.8]} 10... Nd7 {[%clk 0:02:54.2]} 11. Qe2
{[%clk 0:02:23.8]} 11... Bc5 {[%clk 0:02:32.1]} 12. O-O {[%clk 0:02:20.1]} 12...
O-O {[%clk 0:02:30.5]} 13. Nxd7 {[%clk 0:02:06.4]} 13... Bxd7 {[%clk 0:02:31.4]}
14. Bxd7 {[%clk 0:02:07]} 14... Qxd7 {[%clk 0:02:32.3]} 15. d3 {[%clk
0:02:05.9]} 15... Rfd8 {[%clk 0:02:31.8]} 16. Rd1 {[%clk 0:02:05.9]} 16... Rac8
{[%clk 0:02:31.7]} 17. Be3 {[%clk 0:02:03.2]} 17... Bd4 {[%clk 0:02:32]} 18.
Bxd4 {[%clk 0:02:02.6]} 18... Qxd4 {[%clk 0:02:32]} 19. g3 {[%clk 0:01:58.4]}
19... h6 {[%clk 0:02:31.9]} 20. a3 {[%clk 0:01:54.5]} 20... Rc6 {[%clk
0:02:30.6]} 21. Rd2 {[%clk 0:01:47.8]} 21... Rdc8 {[%clk 0:02:29.8]} 22. Rad1
{[%clk 0:01:44.8]} 22... Rc1 {[%clk 0:02:29.1]} 23. Kg2 {[%clk 0:01:43.1]} 23...
Qd5+ {[%clk 0:02:28.8]} 24. Qf3 {[%clk 0:01:39.9]} 24... Qxf3+ {[%clk
0:02:24.8]} 25. Kxf3 {[%clk 0:01:40.1]} 25... Rxd1 {[%clk 0:02:25.7]} 26. Rxd1
{[%clk 0:01:40.1]} 26... Rc2 {[%clk 0:02:25.7]} 27. Rb1 {[%clk 0:01:38.7]} 27...
Kf8 {[%clk 0:02:26.2]} 28. Ke3 {[%clk 0:01:38.6]} 28... Ke7 {[%clk 0:02:24.6]}
29. h4 {[%clk 0:01:38.7]} 29... Kd6 {[%clk 0:02:24.8]} 30. d4 {[%clk 0:01:37.4]}
30... Kd5 {[%clk 0:02:24.9]} 31. f3 {[%clk 0:01:35]} 31... a6 {[%clk 0:02:19.4]}
32. h5 {[%clk 0:01:34]} 32... Rg2 {[%clk 0:02:16.9]} 33. g4 {[%clk 0:01:32.8]}
33... Rc2 {[%clk 0:02:16.7]} 34. Kd3 {[%clk 0:01:32.2]} 34... Rc4 {[%clk
0:02:16.8]} 35. Ke3 {[%clk 0:01:31.9]} 35... Rxd4 {[%clk 0:02:16.6]} 36. Rc1
{[%clk 0:01:32.2]} 36... Rc4 {[%clk 0:02:17]} 37. Rd1+ {[%clk 0:01:32.2]} 37...
Kc6 {[%clk 0:02:17.6]} 38. Rd8 {[%clk 0:01:31.9]} 38... Rc2 {[%clk 0:02:01.4]}
39. Rf8 {[%clk 0:01:26.3]} 39... Rxb2 {[%clk 0:02:00.6]} 40. Rxf7 {[%clk
0:01:26.2]} 40... Rb3+ {[%clk 0:02:01.1]} 41. Kf4 {[%clk 0:01:22]} 41... Rxa3
{[%clk 0:02:01.6]} 42. Rxg7 {[%clk 0:01:19.6]} 42... b5 {[%clk 0:02:02.1]} 43.
Rg6 {[%clk 0:01:19]} 43... Kd5 {[%clk 0:01:42.2]} 44. Rxh6 {[%clk 0:01:17.3]}
44... b4 {[%clk 0:01:42.6]} 45. Rh8 {[%clk 0:01:16.8]} 45... b3 {[%clk
0:01:39.3]} 46. Rb8 {[%clk 0:01:15.6]} 46... a5 {[%clk 0:01:39.7]} 47. h6 {[%clk
0:01:15.4]} 47... Ra4+ {[%clk 0:01:18.9]} 48. Kg3 {[%clk 0:01:12.2]} 48... Rb4
{[%clk 0:01:15]} 49. Rd8+ {[%clk 0:01:02.9]} 49... Kc4 {[%clk 0:00:55.5]} 50. h7
{[%clk 0:01:02]} 50... b2 {[%clk 0:00:55.6]} 51. h8=Q {[%clk 0:00:40.4]} 51...
b1=Q {[%clk 0:00:54.4]} 52. Rc8+ {[%clk 0:00:31.2]} 52... Kb3 {[%clk 0:00:51]}
53. Qc3+ {[%clk 0:00:24.9]} 53... Ka4 {[%clk 0:00:51.2]} 54. Qc6+ {[%clk
0:00:22.6]} 54... Ka3 {[%clk 0:00:51]} 55. Qc3+ {[%clk 0:00:19.4]} 55... Qb3
{[%clk 0:00:48.7]} 56. g5 {[%clk 0:00:17.2]} 56... Qxc3 {[%clk 0:00:42.7]} 57.
Rxc3+ {[%clk 0:00:16.6]} 57... Kb2 {[%clk 0:00:43.4]} 58. Re3 {[%clk 0:00:16.2]}
58... Rb6 {[%clk 0:00:35.3]} 59. g6 {[%clk 0:00:15.9]} 59... e5 {[%clk
0:00:35.4]} 60. Rxe5 {[%clk 0:00:13.7]} 60... Rxg6+ {[%clk 0:00:35.5]} 61. Kf4
{[%clk 0:00:13.3]} 61... a4 {[%clk 0:00:35.8]} 62. Kf5 {[%clk 0:00:13]} 62...
Ra6 {[%clk 0:00:35.1]} 63. Re2+ {[%clk 0:00:12.2]} 63... Kb3 {[%clk 0:00:33.4]}
64. f4 {[%clk 0:00:13.1]} 64... a3 {[%clk 0:00:33.7]} 65. Kg5 {[%clk 0:00:13.1]}
65... Ra5+ {[%clk 0:00:33.1]} 66. f5 {[%clk 0:00:13.1]} 66... a2 {[%clk
0:00:31.6]} 67. Rxa2 {[%clk 0:00:11.3]} 67... Rxa2 {[%clk 0:00:32.3]} 68. f6
{[%clk 0:00:11.4]} 68... Rf2 {[%clk 0:00:29.4]} 69. Kg6 {[%clk 0:00:10.6]} 69...
Kc4 {[%clk 0:00:28.5]} 70. f7 {[%clk 0:00:10.7]} 70... Kd5 {[%clk 0:00:24.8]}
71. Kg7 {[%clk 0:00:10.4]} 71... Rg2+ {[%clk 0:00:25.3]} 72. Kh7 {[%clk
0:00:10.4]} 72... Rh2+ {[%clk 0:00:25.6]} 73. Kg7 {[%clk 0:00:10.5]} 73... Rg2+
{[%clk 0:00:25.9]} 74. Kh7 {[%clk 0:00:10.6]} 74... Rf2 {[%clk 0:00:26.4]} 75.
Kg7 {[%clk 0:00:10.5]} 75... Ke6 {[%clk 0:00:24.9]} 76. f8=Q {[%clk 0:00:08.1]}
76... Rg2+ {[%clk 0:00:24.5]} 77. Kh7 {[%clk 0:00:08.1]} 77... Rh2+ {[%clk
0:00:24.7]} 78. Kg6 {[%clk 0:00:08.3]} 78... Rg2+ {[%clk 0:00:22.8]} 79. Kh5
{[%clk 0:00:08.3]} 79... Rh2+ {[%clk 0:00:20.4]} 80. Kg4 {[%clk 0:00:08.4]}
80... Rg2+ {[%clk 0:00:21.1]} 81. Kf3 {[%clk 0:00:08.3]} 81... Rg6 {[%clk
0:00:21.5]} 82. Qc8+ {[%clk 0:00:07.6]} 82... Kf7 {[%clk 0:00:21.9]} 83. Kf4
{[%clk 0:00:07.5]} 83... Rf6+ {[%clk 0:00:22.6]} 84. Ke5 {[%clk 0:00:07.3]}
84... Kg7 {[%clk 0:00:23.3]} 85. Qc4 {[%clk 0:00:05.8]} 85... Rg6 {[%clk
0:00:23.3]} 86. Qd4 {[%clk 0:00:04.9]} 86... Kh6 {[%clk 0:00:22.7]} 87. Kf5
{[%clk 0:00:04.5]} 87... Rg5+ {[%clk 0:00:23.2]} 88. Kf6 {[%clk 0:00:04.1]}
88... Rg6+ {[%clk 0:00:23.9]} 89. Kf7 {[%clk 0:00:04.1]} 89... Kh5 {[%clk
0:00:24.5]} 0-1

[Event "Late-Titled-Tuesday-Blitz-September-12-2023"]
[Site "Chess.com"]
[Date "2023.09.12"]
[Round "2"]
[White "Roedor"]
[Black "MikeKorovin"]
[Result "1-0"]
[WhiteElo "2418"]
[BlackElo "2632"]
[TimeControl "180+1"]
[EndTime "14:12:08 PDT"]
[Termination "Roedor won by resignation"]

1. d4 {[%clk 0:02:56.1]} 1... e6 {[%clk 0:02:59.9]} 2. c4 {[%clk 0:02:54.2]}
2... Nf6 {[%clk 0:03:00.2]} 3. g3 {[%clk 0:02:53.4]} 3... Bb4+ {[%clk
0:03:01.1]} 4. Nc3 {[%clk 0:02:51.6]} 4... Qe7 {[%clk 0:03:02]} 5. Bg2 {[%clk
0:02:51.1]} 5... O-O {[%clk 0:03:02.2]} 6. Nf3 {[%clk 0:02:51.1]} 6... d6 {[%clk
0:03:02.7]} 7. O-O {[%clk 0:02:51.2]} 7... Bxc3 {[%clk 0:03:03.6]} 8. bxc3
{[%clk 0:02:51.3]} 8... e5 {[%clk 0:03:04.5]} 9. c5 {[%clk 0:02:38.2]} 9... Nc6
{[%clk 0:02:51.5]} 10. cxd6 {[%clk 0:02:34.3]} 10... cxd6 {[%clk 0:02:52.4]} 11.
Ba3 {[%clk 0:02:33.5]} 11... Rd8 {[%clk 0:02:52.3]} 12. dxe5 {[%clk 0:02:29.9]}
12... Nxe5 {[%clk 0:02:53.2]} 13. Nxe5 {[%clk 0:02:30.1]} 13... Qxe5 {[%clk
0:02:54.1]} 14. Qd4 {[%clk 0:02:30.4]} 14... Qxd4 {[%clk 0:02:27.6]} 15. cxd4
{[%clk 0:02:31.3]} 15... b6 {[%clk 0:02:28.5]} 16. Bxa8 {[%clk 0:02:28.7]} 1-0

[Event "Late-Titled-Tuesday-Blitz-September-12-2023"]
[Site "Chess.com"]
[Date "2023.09.12"]
[Round "2"]
[White "Michalczak"]
[Black "expii"]
[Result "1-0"]
[WhiteElo "2496"]
[BlackElo "2256"]
[TimeControl "180+1"]
[EndTime "14:12:42 PDT"]
[Termination "Michalczak won by resignation"]

1. e4 {[%clk 0:03:00.1]} 1... c5 {[%clk 0:02:58.1]} 2. c3 {[%clk 0:02:58.9]}
2... Nf6 {[%clk 0:02:56.8]} 3. e5 {[%clk 0:02:58.3]} 3... Nd5 {[%clk 0:02:51.1]}
4. Nf3 {[%clk 0:02:57.6]} 4... Nc6 {[%clk 0:02:42.6]} 5. d4 {[%clk 0:02:54.8]}
5... e6 {[%clk 0:02:35.1]} 6. c4 {[%clk 0:02:53]} 6... Nb6 {[%clk 0:02:15.4]} 7.
d5 {[%clk 0:02:50.5]} 7... Nb8 {[%clk 0:01:58]} 8. Nc3 {[%clk 0:02:49]} 8... d6
{[%clk 0:01:54.2]} 9. Bg5 {[%clk 0:02:36.3]} 9... Be7 {[%clk 0:01:50.4]} 10.
Bxe7 {[%clk 0:02:36.6]} 10... Qxe7 {[%clk 0:01:37.2]} 11. exd6 {[%clk
0:02:37.5]} 11... Qxd6 {[%clk 0:01:37.7]} 12. Nb5 {[%clk 0:02:37.8]} 12... Qe7
{[%clk 0:01:31.9]} 13. d6 {[%clk 0:02:37.8]} 1-0

[Event "Late-Titled-Tuesday-Blitz-September-12-2023"]
[Site "Chess.com"]
[Date "2023.09.12"]
[Round "2"]
[White "ameetghasi100"]
[Black "Tunahan_Makaraci"]
[Result "1-0"]
[WhiteElo "2682"]
[BlackElo "2304"]
[TimeControl "180+1"]
[EndTime "14:12:44 PDT"]
[Termination "ameetghasi100 won by resignation"]

1. d4 {[%clk 0:03:00.9]} 1... d5 {[%clk 0:02:59.8]} 2. Nf3 {[%clk 0:03:01.3]}
2... c5 {[%clk 0:02:59.3]} 3. e3 {[%clk 0:03:01.5]} 3... Nf6 {[%clk 0:02:58.6]}
4. Bd3 {[%clk 0:03:01.6]} 4... Nc6 {[%clk 0:02:54.6]} 5. O-O {[%clk 0:03:01.5]}
5... Bg4 {[%clk 0:02:54.4]} 6. c3 {[%clk 0:02:58.4]} 6... e6 {[%clk 0:02:54]} 7.
Nbd2 {[%clk 0:02:57.3]} 7... Bd6 {[%clk 0:02:52.2]} 8. h3 {[%clk 0:02:57.1]}
8... Bh5 {[%clk 0:02:52.4]} 9. e4 {[%clk 0:02:50.7]} 9... dxe4 {[%clk
0:02:52.3]} 10. Nxe4 {[%clk 0:02:50.8]} 10... Nxe4 {[%clk 0:02:53.2]} 11. Bxe4
{[%clk 0:02:51.5]} 11... cxd4 {[%clk 0:02:49.1]} 12. cxd4 {[%clk 0:02:33.3]}
12... O-O {[%clk 0:02:48.7]} 13. Be3 {[%clk 0:02:31.5]} 13... Nb4 {[%clk
0:02:42.9]} 14. Bxb7 {[%clk 0:02:14.2]} 14... Rb8 {[%clk 0:02:42.9]} 15. Be4
{[%clk 0:02:14.3]} 15... Nd5 {[%clk 0:02:43.2]} 16. Bxd5 {[%clk 0:02:10.2]}
16... exd5 {[%clk 0:02:43.2]} 17. b3 {[%clk 0:02:10.8]} 17... f5 {[%clk
0:02:39.4]} 18. Rc1 {[%clk 0:02:02.4]} 18... Rf6 {[%clk 0:02:35.1]} 19. Bg5
{[%clk 0:01:56.7]} 19... Be7 {[%clk 0:02:30.5]} 20. Bxf6 {[%clk 0:01:55.2]}
20... Bxf6 {[%clk 0:02:31.4]} 21. Qd3 {[%clk 0:01:55.5]} 1-0